fUSD/lending_fUSD_20240526
["ID","MTS","AMOUNT","RATE_DAILY","PERIOD"]
[327962204,1716720639040,-1002.60231275,0.000129,2]
[327962205,1716720639082,-14334.97424228,0.000129,2]
[327962206,1716720639094,-323.97031072,0.000129,2]
[327962229,1716720641073,-268.486,0.000129,2]
[327962230,1716720641084,-671.80019193,0.000129,2]
[327962231,1716720641675,-1839.53485053,0.000129,2]
[327962232,1716720641871,-504.36232548,0.000129,2]
[327962233,1716720641883,-20000.0,0.000129,2]
[327962234,1716720641894,-16478.9305864,0.000129,2]
[327962235,1716720641906,-1212.14956,0.000129,2]
[327962236,1716720641918,-6289.9303762,0.000129,2]
[327962237,1716720641951,-22353.42107723,0.000129,2]
[327962238,1716720641962,-439.54636968,0.000129,2]
[327962239,1716720641973,-2354.52516619,0.000129,2]
[327962240,1716720641985,-593.14,0.000129,2]
[327962241,1716720641997,-34815.82358329,0.000129,2]
[327962304,1716720643333,-1371.04447154,0.000129,2]
[327962314,1716720643859,-1689.63835792,0.000129,2]
[327962315,1716720643872,-1443.95027705,0.000129,2]
[327962317,1716720643885,-665.84359141,0.000129,2]
[327962319,1716720643896,-10970.52681283,0.000129,2]
[327962321,1716720643908,-746.0,0.000129,2]
[327962324,1716720647542,-18380.95209496,0.000129,2]
[327962325,1716720647554,-6902.0,0.000129,2]
[327962326,1716720647565,-1743.491,0.000129,2]
[327962327,1716720647577,-5570.45453968,0.000129,2]
[327962337,1716720649047,1062.41226281,8.915e-05,2]
[327962338,1716720649068,2000.0,8.915e-05,2]
[327962339,1716720649088,2000.0,8.915e-05,2]
[327962340,1716720649109,2000.0,8.915e-05,2]
[327962341,1716720649137,2000.0,8.915e-05,2]
[327962342,1716720649396,1156.17040169,8.915e-05,2]
[327962343,1716720676505,200.0,0.00016438,7]
[327962344,1716720804373,1000.0,0.00030158,120]
[327962348,1716721100065,180.22162938,0.00010018,2]
[327962349,1716721163445,946.14141461,0.00010018,2]
[327962350,1716721179483,946.14141461,0.00010018,2]
[327962351,1716721195445,946.14141461,0.00010018,2]
[327962352,1716721217521,946.14141461,0.00010018,2]
[327962353,1716721233451,946.14141461,0.00010018,2]
[327962354,1716721251454,946.14141461,0.00010018,2]
[327962357,1716721269457,710.19079773,0.00010018,2]
[327962359,1716721442618,164.06481566,0.00010002,2]
[327962360,1716721477700,1274.02294122,0.00010099,2]
[327962361,1716721499055,199.61,8.895e-05,2]
[327962362,1716721528967,590.35,9.25e-05,2]
[327962365,1716721626815,268.55232379,0.00010099,2]
[327962366,1716721633817,4281.53119452,0.00010099,2]
[327962420,1716721834050,-200.0,0.00011179,2]
[327962421,1716721834061,-53.92241788,0.00011188,2]
[327962422,1716721834073,-4694.873546,0.00011188,2]
[327962423,1716721834083,-150.0,0.00011189,2]
[327962424,1716721834095,-5397.41601699,0.00011189,2]
[327962425,1716721834107,-331.9629089,0.00011189,2]
[327962426,1716721834118,-2806.87280344,0.00011189,2]
[327962427,1716721834129,-833.79793316,0.00011189,2]
[327962428,1716721834141,-216.22193959,0.00011189,2]
[327962429,1716721834150,-102.64496027,0.0001119,2]
[327962430,1716721834162,-505.38615579,0.0001119,2]
[327962431,1716721834330,-659.47,0.0001119,2]
[327962432,1716721834345,-645.65888394,0.0001119,2]
[327962433,1716721834355,-212.67,0.00011212,2]
[327962434,1716721834364,-160.0,0.00011213,2]
[327962435,1716721834374,-11967.30669104,0.00011213,2]
[327962436,1716721834385,-11236.20296359,0.00011213,2]
[327962437,1716721834397,-690.20000005,0.00011213,2]
[327962438,1716721834408,-6.29034532,0.00011213,2]
[327962439,1716721834418,-212.67,0.00011243,2]
[327962440,1716721834427,-161.04,0.00011263,2]
[327962441,1716721834437,-250.0,0.00011264,2]
[327962442,1716721834446,-150.99,0.00011264,2]
[327962443,1716721834456,-509.91274802,0.00011264,2]
[327962444,1716721834467,-1800.0,0.00011264,2]
[327962445,1716721834478,-826.29867666,0.00011264,2]
[327962446,1716721834490,-704.94979825,0.00011264,2]
[327962447,1716721834501,-937.26877707,0.00011264,2]
[327962448,1716721834512,-994.48,0.00011264,2]
[327962449,1716721834521,-161.04,0.00011272,2]
[327962450,1716721834536,-212.67,0.00011274,2]
[327962451,1716721834545,-80.11316195,0.00011282,2]
[327962452,1716721834557,-80.92683805,0.00011282,2]
[327962453,1716721834567,-161.04,0.00011291,2]
[327962454,1716721834576,-161.04,0.00011301,2]
[327962455,1716721834586,-1012.38,0.00011301,2]
[327962458,1716721834598,-212.67,0.00011304,2]
[327962460,1716721834607,-168.43,0.00011309,2]
[327962461,1716721834616,-7152.98,0.00011309,2]
[327962462,1716721834625,-161.04,0.0001131,2]
[327962463,1716721834635,-161.04,0.00011319,2]
[327962464,1716721834644,-212.67,0.00011335,2]
[327962465,1716721834653,-212.67,0.00011366,2]
[327962466,1716721834662,-212.67,0.00011397,2]
[327962467,1716721834671,-212.67,0.00011427,2]
[327962468,1716721834681,-750.94633531,0.00011428,2]
[327962469,1716721834690,-212.67,0.00011458,2]
[327962470,1716721834699,-212.67,0.00011489,2]
[327962471,1716721834708,-590.35,0.00011514,2]
[327962472,1716721834717,-212.67,0.0001152,2]
[327962473,1716721834727,-212.67,0.0001155,2]
[327962474,1716721834736,-212.67,0.00011581,2]
[327962475,1716721834745,-212.67,0.00011612,2]
[327962476,1716721834754,-212.67,0.00011643,2]
[327962477,1716721834763,-212.67,0.00011673,2]
[327962478,1716721834772,-212.67,0.00011704,2]
[327962479,1716721834782,-212.67,0.00011735,2]
[327962480,1716721834791,-212.67,0.00011766,2]
[327962481,1716721834800,-212.67,0.00011796,2]
[327962482,1716721834809,-182.49,0.00011874,2]
[327962483,1716721834818,-475.04,0.00011874,2]
[327962484,1716721834828,-150.99,0.00011874,2]
[327962485,1716721834838,-499.99,0.00011919,2]
[327962486,1716721834847,-206.55184202,0.00012571,2]
[327962487,1716721834856,-5450.1524,0.000126,2]
[327962488,1716721834866,-180.6829892,0.000126,2]
[327962489,1716721834875,-2173.7898,0.000126,2]
[327962490,1716721834884,-317.93857319,0.0001265,2]
[327962491,1716721834894,-1285.21083923,0.00012698,2]
[327962492,1716721834903,-2563.38718937,0.00012698,2]
[327962493,1716721834913,-159.88107856,0.00012698,2]
[327962494,1716721834923,-410.08555038,0.00012698,2]
[327962495,1716721834932,-1235.32018218,0.00012698,2]
[327962496,1716721834942,-1173.16786747,0.00012698,2]
[327962497,1716721834951,-645.00016634,0.00012698,2]
[327962498,1716721834961,-268.36796615,0.00012698,2]
[327962499,1716721834970,-2185.91095939,0.00012698,2]
[327962500,1716721834979,-500.0,0.000127,2]
[327962501,1716721834988,-245000.0,0.000127,2]
[327962502,1716721834998,-8970.8739,0.000127,2]
[327962503,1716721835008,-100000.0,0.000127,2]
[327962504,1716721835017,-500.0,0.00012796,2]
[327962505,1716721835027,-200.0,0.00012797,2]
[327962506,1716721835037,-200.0,0.00012797,2]
[327962507,1716721835046,-500.0,0.00012797,2]
[327962508,1716721835056,-6075.31326051,0.000129,2]
[327962509,1716721835067,-2153.18688686,0.000129,2]
[327962510,1716721835076,-1494.7417238,0.000129,2]
[327962511,1716721835086,-158.43787398,0.000129,2]
[327962512,1716721835096,-7500.0,0.000129,2]
[327962513,1716721835106,-667.55485814,0.000129,2]
[327962514,1716721835117,-174.15984609,0.000129,2]
[327962515,1716721835126,-4600.7831197,0.00012977,2]
[327962516,1716721835136,-160.12328369,0.00012989,2]
[327962517,1716721835146,-30279.6832989,0.0001299,2]
[327962518,1716721835157,-8993.2714951,0.0001299,2]
[327962519,1716721835166,-2655.5354715,0.0001299,2]
[327962520,1716721835176,-1502.2146748,0.0001299,2]
[327962521,1716721835185,-151.24,0.0001299,2]
[327962522,1716721835194,-2755.2252945,0.0001299,2]
[327962523,1716721835204,-151.0,0.00012991,2]
[327962524,1716721835213,-151.0,0.00012991,2]
[327962525,1716721835223,-151.0,0.00012991,2]
[327962526,1716721835233,-678.138668,0.00012991,2]
[327962527,1716721835243,-678.138668,0.00012991,2]
[327962528,1716721835254,-32531.9861174,0.00012991,2]
[327962529,1716721835264,-25096.51197443,0.00012991,2]
[327962530,1716721835277,-9687.77696137,0.00012991,2]
[327962531,1716721835288,-1965.26128423,0.00012991,2]
[327962532,1716721835300,-341.48088377,0.00012991,2]
[327962533,1716721835311,-454.25461509,0.00012991,2]
[327962534,1716721835321,-1015.83173565,0.00012991,2]
[327962538,1716721839557,-5516.54347696,0.00012991,2]
[327962539,1716721839567,-9593.4724963,0.00012991,2]
[327962540,1716721839577,-2755.2269804,0.00012991,2]
[327962541,1716721839588,-2854.9184892,0.00012991,2]
[327962542,1716721839600,-1558.6093452,0.00012991,2]
[327962543,1716721839610,-1615.0040156,0.00012991,2]
[327962544,1716721839620,-2858.659261,0.00012991,2]
[327962545,1716721839630,-2962.0932274,0.00012991,2]
[327962546,1716721839640,-1000.0,0.00012999,2]
[327962547,1716721839650,-1790.28830644,0.00012999,2]
[327962548,1716721839659,-36768.51836092,0.00013,2]
[327962550,1716721840200,-383427.04764203,0.00013,2]
[327962551,1716721840337,-10744.66583901,0.00013,2]
[327962552,1716721840350,-21083.64695268,0.00013,2]
[327962553,1716721840370,-9856.46215761,0.00013,2]
[327962554,1716721840380,-1000.0,0.00013,2]
[327962555,1716721840390,-59634.18774989,0.00013,2]
[327962558,1716721842949,-215.56823881,0.000126,2]
[327962560,1716721842959,-198.75094802,0.000129,2]
[327962561,1716721842970,-808.06516995,0.00013,2]
[327962562,1716721842982,-419.43464858,0.00013,2]
[327962595,1716721843612,-31124.05984371,0.00013,2]
[327962615,1716721843864,-837.85090234,0.00013,2]
[327962617,1716721843877,-714.46475465,0.00013,2]
[327962619,1716721843890,-769.61865015,0.00013,2]
[327962621,1716721843902,-1381.05676272,0.00013,2]
[327962623,1716721843915,-7062.5,0.00013,2]
[327962626,1716721843928,-1925.8559374,0.00013,2]
[327962628,1716721843939,-7441.11693537,0.00013,2]
[327962630,1716721843951,-9964.63341854,0.00013,2]
[327962632,1716721843962,-491.4486754,0.00013,2]
[327962636,1716721843981,-5003.48713317,0.00013,2]
[327962639,1716721843992,-16883.49600002,0.00013,2]
[327962705,1716721844540,-215.56823879,0.00012675,2]
[327962707,1716721844551,-4284.43176121,0.00013,2]
[327962709,1716721844563,-4449.61384719,0.00013,2]
[327962712,1716721844575,-2850.0,0.00013,2]
[327962945,1716721846456,-215.56823879,0.0001275,2]
[327962947,1716721846466,-5784.4558455,0.00013,2]
[327962980,1716721846646,-645.00016634,0.00013,2]
[327962983,1716721846658,-3512.73300096,0.00013,2]
[327963003,1716721846798,-397382.59622125,0.00013,2]
[327963005,1716721846810,-3502.70908,0.00013,2]
[327963008,1716721846822,-2807.15705431,0.00013,2]
[327963010,1716721846834,-8708.32411434,0.00013,2]
[327963227,1716721896182,200.0,0.00016438,7]
[327963228,1716721943391,-162.8176661,0.00011697,2]
[327963229,1716721943416,-838.580718,0.00011697,2]
[327963230,1716721943444,-3093.3991131,0.00011697,2]
[327963231,1716721943466,-750.92998531,0.00011698,2]
[327963232,1716721943489,-7524.11533667,0.0001234,2]
[327963233,1716721943513,-956.17943807,0.00012341,2]
[327963234,1716721943536,-215.56823879,0.00012825,2]
[327963235,1716721943565,-215.56823879,0.000129,2]
[327963236,1716721943996,-3592.65962468,0.000129,2]
[327963237,1716721944028,-7500.0,0.000129,2]
[327963238,1716721944050,-445.0365721,0.000129,2]
[327963239,1716721944072,-10532.81154716,0.00012989,2]
[327963240,1716721944095,-17958.9537092,0.0001299,2]
[327963241,1716721944118,-18633.1511401,0.00012991,2]
[327963242,1716721944140,-19307.3485709,0.00012991,2]
[327963243,1716721944162,-411.64486501,0.00012997,2]
[327963244,1716721944186,-1369.51616966,0.00012997,2]
[327963245,1716721944209,-207.97202329,0.00012997,2]
[327963246,1716721944231,-211.34838905,0.00012997,2]
[327963247,1716721944253,-11966.40722323,0.00012997,2]
[327963248,1716721944276,-1790.87747307,0.00012997,2]
[327963249,1716721944298,-838.83056535,0.00012997,2]
[327963250,1716721944319,-415.20268921,0.00012997,2]
[327963251,1716721944341,-264.21247408,0.00012998,2]
[327963252,1716721944363,-534.45953034,0.00012998,2]
[327963253,1716721944385,-3212.42301623,0.00012998,2]
[327963254,1716721944407,-155.0,0.00012998,2]
[327963255,1716721944430,-155.56530964,0.00012998,2]
[327963256,1716721944457,-340.92727371,0.00012998,2]
[327963257,1716721944482,-268.46014497,0.00012998,2]
[327963258,1716721944504,-488.70573697,0.00012998,2]
[327963259,1716721944526,-274.67946509,0.00012998,2]
[327963260,1716721944549,-197.73726457,0.00012998,2]
[327963261,1716721944573,-168.75338433,0.00012998,2]
[327963262,1716721944596,-895.58799992,0.00012998,2]
[327963263,1716721944619,-155.33073223,0.00012998,2]
[327963264,1716721944643,-295.65515236,0.00012998,2]
[327963265,1716721944666,-326.03857362,0.00012998,2]
[327963266,1716721944689,-276.85607802,0.00012998,2]
[327963267,1716721944712,-193.24143197,0.00012998,2]
[327963268,1716721944735,-259.77429362,0.00012998,2]
[327963269,1716721944758,-157.74148691,0.00012998,2]
[327963270,1716721944780,-534.9432489,0.00012999,2]
[327963271,1716721944803,-1245.97765168,0.00012999,2]
[327963272,1716721944824,-3279.95379581,0.00012999,2]
[327963273,1716721944848,-4116.86116669,0.00012999,2]
[327963274,1716721944870,-364.49648891,0.00012999,2]
[327963275,1716721944893,-1061013.14575844,0.00012999,2]
[327963276,1716721944918,-3598816.5274807,0.00013,2]
[327963277,1716721944943,-3329.34145882,0.00013,2]
[327963278,1716721944969,-721735.17288184,0.00013,2]
[327963279,1716721944992,-937169.77581282,0.00013,2]
[327963280,1716721945017,-380779.92376788,0.00013,2]
[327963281,1716721945040,-159139.91245056,0.00013,2]
[327963282,1716721945063,-970.29981,0.00013,2]
[327963283,1716721945085,-269.942207,0.00013,2]
[327963284,1716721945107,-151.0,0.00013,2]
[327963285,1716721945130,-151.0,0.00013,2]
[327963286,1716721945152,-151.0,0.00013,2]
[327963287,1716721945175,-151.0,0.00013,2]
[327963288,1716721945197,-151.0,0.00013,2]
[327963289,1716721945220,-151.0,0.00013,2]
[327963290,1716721945241,-151.0,0.00013,2]
[327963291,1716721945263,-162.481736,0.00013,2]
[327963292,1716721945286,-193.646554,0.00013,2]
[327963293,1716721945307,-266.724653,0.00013,2]
[327963294,1716721945331,-151.0,0.00013,2]
[327963295,1716721945353,-151.0,0.00013,2]
[327963296,1716721945376,-151.0,0.00013,2]
[327963297,1716721945402,-293.524769,0.00013,2]
[327963298,1716721945427,-277.804728,0.00013,2]
[327963299,1716721945449,-277.804728,0.00013,2]
[327963300,1716721945472,-277.804728,0.00013,2]
[327963301,1716721945495,-277.804728,0.00013,2]
[327963302,1716721945520,-277.804728,0.00013,2]
[327963303,1716721945545,-277.804728,0.00013,2]
[327963304,1716721945570,-277.804728,0.00013,2]
[327963305,1716721945593,-277.804728,0.00013,2]
[327963306,1716721945617,-277.804728,0.00013,2]
[327963307,1716721945643,-277.804728,0.00013,2]
[327963308,1716721945667,-277.804728,0.00013,2]
[327963309,1716721945692,-277.804728,0.00013,2]
[327963310,1716721945714,-151.0,0.00013,2]
[327963311,1716721945740,-151.0,0.00013,2]
[327963312,1716721945762,-151.0,0.00013,2]
[327963313,1716721945785,-151.0,0.00013,2]
[327963314,1716721945806,-151.0,0.00013,2]
[327963315,1716721945828,-151.0,0.00013,2]
[327963316,1716721945850,-151.0,0.00013,2]
[327963317,1716721945872,-151.0,0.00013,2]
[327963318,1716721945894,-151.0,0.00013,2]
[327963319,1716721945917,-151.0,0.00013,2]
[327963320,1716721945942,-151.0,0.00013,2]
[327963321,1716721945964,-151.0,0.00013,2]
[327963322,1716721945985,-3250.37,0.00013,2]
[327963323,1716721946007,-610.324801,0.00013,2]
[327963324,1716721946029,-610.324801,0.00013,2]
[327963325,1716721946051,-610.324801,0.00013,2]
[327963326,1716721946073,-610.324801,0.00013,2]
[327963327,1716721946095,-221118.95955741,0.00013,2]
[327963328,1716721953993,156855.3267,0.000129,2]
[327963329,1716721955027,151.0,0.00013,2]
[327963330,1716721955356,151.0,0.00013,2]
[327963331,1716721955879,318.04838929,0.000129,2]
[327963332,1716721957645,151.0,0.00013,2]
[327963333,1716721957711,151.0,0.00013,2]
[327963334,1716721959048,243.43915434,0.0001235,2]
[327963335,1716721961638,151.0,0.00013,2]
[327963336,1716721962012,151.0,0.00013,2]
[327963337,1716721977370,500.0,0.00012899,2]
[327963339,1716721995363,500.0,0.00013,2]
[327963340,1716721996136,200.0,0.00012896,2]
[327963341,1716721996460,7500.0,0.000129,2]
[327963342,1716721999245,615.28,0.00012921,2]
[327963343,1716722002682,500.0,0.00012896,2]
[327963346,1716722027179,10000.0,0.000129,2]
[327963348,1716722037938,808.58318,0.00013,2]
[327963349,1716722039317,16120.0645,0.00012725,2]
[327963351,1716722080774,416.66666,0.00013,2]
[327963352,1716722082779,7500.0,0.000129,2]
[327963353,1716722107776,200.0,0.00013,2]
[327963354,1716722124048,673.81932,0.00013,2]
[327963355,1716722168003,347.22222,0.00013,2]
[327963356,1716722202782,157.19,0.0001187,2]
[327963357,1716722210771,561.5161,0.00013,2]
[327963358,1716722254410,289.35185,0.00013,2]
[327963362,1716722299502,467.93008,0.00013,2]
[327963363,1716722402556,150.0,0.00013,2]
[327963364,1716722402971,150.0,0.00013,2]
[327963365,1716722403168,150.0,0.00013,2]
[327963366,1716722403361,150.0,0.00013,2]
[327963367,1716722403554,150.0,0.00013,2]
[327963368,1716722403744,150.0,0.00013,2]
[327963369,1716722403926,150.0,0.00013,2]
[327963370,1716722404093,150.0,0.00013,2]
[327963371,1716722404273,150.0,0.00013,2]
[327963372,1716722404469,150.0,0.00013,2]
[327963373,1716722404664,150.0,0.00013,2]
[327963374,1716722404844,187.33874093,0.00013,2]
[327963375,1716722428174,241.12654,0.00013,2]
[327963376,1716722432277,618951.0079911,0.000129,2]
[327963378,1716722486369,389.94173,0.00013,2]
[327963379,1716722537448,200.93878,0.00013,2]
[327963380,1716722560584,584.51,0.00012914,2]
[327963381,1716722579591,492.40044,0.00013,2]
[327963382,1716722795168,-177.2512975,0.00013054,2]
[327963383,1716722795204,-1713.8323493,0.00013063,2]
[327963384,1716722795226,-1096.8032226,0.00013072,2]
[327963385,1716722795249,-106.82910956,0.00013072,2]
[327963386,1716722822876,200.6051385,0.00012941,2]
[327963497,1716723032114,-393.9,0.00013063,2]
[327963498,1716723032126,-1414.36815207,0.00013063,2]
[327963499,1716723032137,-16199.40897263,0.00013063,2]
[327963500,1716723032146,-2762.7003395,0.00013063,2]
[327963501,1716723032156,-1187.5592315,0.00013063,2]
[327963502,1716723032165,-8855.8000158,0.00013063,2]
[327963503,1716723032174,-555.28,0.00013099,2]
[327963504,1716723032184,-175.58109207,0.00013135,2]
[327963505,1716723032193,-166.15,0.00013136,2]
[327963506,1716723032203,-152.05,0.00013973,2]
[327963507,1716723032212,-152.07,0.00013973,2]
[327963508,1716723032222,-155.06,0.00013973,2]
[327963509,1716723032231,-150.99,0.00013973,2]
[327963510,1716723032240,-13450.23,0.00013973,2]
[327963511,1716723032249,-299.99,0.00014016,2]
[327963512,1716723032259,-904.0,0.00014771,2]
[327963513,1716723032268,-1382.72,0.00014771,2]
[327963517,1716723032277,-160.0,0.00014825,2]
[327963521,1716723032287,-1500.0,0.00014825,2]
[327963525,1716723032296,-499.99,0.00014825,2]
[327963527,1716723032305,-168.43,0.00014836,2]
[327963529,1716723032315,-250.0,0.00014836,2]
[327963531,1716723032324,-286.0,0.00014839,2]
[327963533,1716723032333,-200.0,0.00014848,2]
[327963535,1716723032344,-188.77,0.00014851,2]
[327963536,1716723032353,-580.04,0.00014855,2]
[327963537,1716723032363,-1494.74172377,0.0001486,2]
[327963538,1716723032372,-182.49,0.00014864,2]
[327963539,1716723032381,-23900.0,0.00014866,2]
[327963540,1716723032390,-1926.83,0.00014882,2]
[327963541,1716723032399,-155.1,0.00014956,2]
[327963542,1716723032408,-250.0,0.00014987,2]
[327963543,1716723032418,-2321.0,0.00015,2]
[327963544,1716723032427,-706.0,0.00015,2]
[327963545,1716723032436,-555.28,0.00015363,2]
[327963546,1716723032445,-492.40044,0.0001541,2]
[327963547,1716723032456,-1000.0,0.00016,2]
[327963548,1716723032465,-1000.0,0.00016,2]
[327963549,1716723032474,-1000.0,0.00016,2]
[327963550,1716723032484,-150.0,0.00016069,2]
[327963551,1716723032493,-150.0,0.0001607,2]
[327963552,1716723032502,-150.0,0.00016084,2]
[327963553,1716723032511,-150.0,0.00016086,2]
[327963554,1716723032520,-150.0,0.00016088,2]
[327963555,1716723032529,-150.0,0.00016089,2]
[327963556,1716723032538,-150.0,0.00016098,2]
[327963557,1716723032548,-150.0,0.00016107,2]
[327963558,1716723032557,-150.0,0.0001611,2]
[327963559,1716723032566,-150.0,0.00016111,2]
[327963560,1716723032576,-1500.0,0.00016114,2]
[327963561,1716723032585,-150.0,0.00016115,2]
[327963562,1716723032594,-150.0,0.00016117,2]
[327963563,1716723032604,-150.0,0.00016123,2]
[327963564,1716723032613,-150.0,0.00016123,2]
[327963565,1716723032622,-150.0,0.00016127,2]
[327963566,1716723032631,-150.0,0.0001613,2]
[327963567,1716723032641,-150.0,0.00016132,2]
[327963568,1716723032650,-150.0,0.00016134,2]
[327963569,1716723032660,-150.0,0.00016136,2]
[327963570,1716723032669,-150.0,0.00016139,2]
[327963571,1716723032679,-150.0,0.00016141,2]
[327963572,1716723032689,-150.0,0.00016142,2]
[327963573,1716723032699,-150.0,0.00016146,2]
[327963574,1716723032709,-150.0,0.00016147,2]
[327963575,1716723032719,-150.0,0.00016151,2]
[327963576,1716723032729,-150.0,0.00016152,2]
[327963577,1716723032738,-150.0,0.00016156,2]
[327963578,1716723032748,-150.0,0.00016157,2]
[327963579,1716723032758,-150.0,0.0001616,2]
[327963580,1716723032768,-150.0,0.00016163,2]
[327963581,1716723032777,-150.0,0.00016163,2]
[327963582,1716723032787,-150.0,0.00016167,2]
[327963583,1716723032798,-150.0,0.00016168,2]
[327963584,1716723032808,-1500.0,0.00016171,2]
[327963585,1716723032818,-150.0,0.00016171,2]
[327963586,1716723032827,-150.0,0.00016173,2]
[327963587,1716723032837,-150.0,0.00016176,2]
[327963588,1716723032847,-150.0,0.00016177,2]
[327963589,1716723032857,-150.0,0.00016181,2]
[327963590,1716723032867,-150.0,0.00016182,2]
[327963591,1716723032877,-150.0,0.00016182,2]
[327963592,1716723032886,-300.0,0.00016185,2]
[327963593,1716723032895,-169.51689573,0.00016186,2]
[327963594,1716723032909,-150.0,0.00016195,2]
[327963595,1716723032919,-150.0,0.00016196,2]
[327963596,1716723032931,-1500.0,0.00016199,2]
[327963597,1716723032942,-623.34807594,0.00016201,2]
[327963598,1716723032953,-150.0,0.00016206,2]
[327963599,1716723032962,-150.0,0.00016207,2]
[327963600,1716723032971,-150.0,0.00016208,2]
[327963601,1716723032980,-150.0,0.00016209,2]
[327963602,1716723032993,-150.0,0.0001621,2]
[327963603,1716723033003,-150.0,0.00016214,2]
[327963604,1716723033011,-150.0,0.00016217,2]
[327963605,1716723033020,-150.0,0.00016221,2]
[327963606,1716723033030,-301.02765778,0.00016225,2]
[327963607,1716723033039,-150.0,0.00016226,2]
[327963608,1716723033050,-150.0,0.00016226,2]
[327963609,1716723033060,-150.0,0.00016228,2]
[327963610,1716723033070,-150.0,0.00016229,2]
[327963611,1716723033081,-1500.0,0.0001623,2]
[327963612,1716723033090,-150.0,0.0001623,2]
[327963613,1716723033100,-150.0,0.0001623,2]
[327963614,1716723033111,-1500.0,0.00016233,2]
[327963615,1716723033121,-150.0,0.00016233,2]
[327963616,1716723033130,-150.0,0.00016242,2]
[327963617,1716723033140,-150.0,0.00016245,2]
[327963618,1716723033152,-150.0,0.00016246,2]
[327963619,1716723033162,-150.0,0.00016252,2]
[327963620,1716723033171,-150.0,0.00016253,2]
[327963621,1716723033182,-150.0,0.00016254,2]
[327963622,1716723033193,-150.0,0.00016259,2]
[327963623,1716723033204,-150.0,0.0001626,2]
[327963624,1716723033214,-150.0,0.00016262,2]
[327963625,1716723033224,-300.0,0.00016263,2]
[327963626,1716723033233,-150.0,0.00016264,2]
[327963627,1716723033243,-150.0,0.00016265,2]
[327963628,1716723033253,-150.0,0.00016266,2]
[327963629,1716723033262,-150.0,0.00016268,2]
[327963630,1716723033273,-150.0,0.00016269,2]
[327963631,1716723033283,-300.0,0.0001627,2]
[327963632,1716723033293,-150.0,0.0001627,2]
[327963633,1716723033303,-150.0,0.00016271,2]
[327963634,1716723033313,-300.0,0.00016275,2]
[327963635,1716723033324,-150.0,0.00016276,2]
[327963636,1716723033334,-150.0,0.00016277,2]
[327963637,1716723033345,-150.0,0.00016283,2]
[327963638,1716723033357,-150.0,0.00016284,2]
[327963639,1716723033367,-150.0,0.00016292,2]
[327963640,1716723033379,-150.0,0.00016294,2]
[327963641,1716723033390,-150.0,0.00016297,2]
[327963642,1716723033401,-150.0,0.00016297,2]
[327963643,1716723033413,-150.0,0.00016301,2]
[327963644,1716723033423,-300.0,0.00016303,2]
[327963645,1716723033433,-150.0,0.00016303,2]
[327963646,1716723033443,-150.0,0.00016305,2]
[327963647,1716723033453,-150.0,0.00016309,2]
[327963648,1716723033463,-300.0,0.00016309,2]
[327963650,1716723033473,-150.0,0.00016315,2]
[327963651,1716723033483,-150.0,0.00016317,2]
[327963652,1716723033494,-150.0,0.00016323,2]
[327963653,1716723033505,-150.0,0.00016325,2]
[327963654,1716723033515,-150.0,0.00016326,2]
[327963655,1716723033527,-150.0,0.00016327,2]